[Event "EWIRCC 2019"]
[Site "Monte-Carlo"]
[Date "2019.12.01"]
[Round "7.10"]
[White "Gunina, Valentina"]
[Black "Buksa, Nataliya"]
[Result "1-0"]
[ECO "B31"]
[WhiteElo "2509"]
[BlackElo "2410"]
[Annotator "ChessBase"]
[PlyCount "67"]
[EventDate "2019.11.28"]
[EventType "swiss"]
[EventCountry "MNC"]
[SourceTitle "playchess.com"]
[Source "ChessBase"]
[SourceQuality "1"]
[TimeControl "5400+30"]

1. e4 {[%emt 1:15:12]} c5 {[%emt 1:15:11]} 2. Nf3 {[%emt 0:00:22]} Nc6 {[%emt 0:00:21]} 3. Bb5 {[%emt 0:00:29]} g6 {[%emt 0:00:21]} 4. Bxc6 {[%emt 0:00:38]} dxc6 {[%emt 0:00:22]} 5. O-O {[%emt 0:00:27]} Bg7 {[%emt 0:00:21]} 6. d3 {[%emt 0:00:24]} Nf6 {[%emt 0:00:36]} 7. h3 {[%emt 0:00:44]} b6 {[%emt 0:00:38]} 8. Nc3 {[%emt 0:00:28]} Nd7 {[%emt 0:00:22]} 9. Bg5 {[%emt 0:00:33]} h6 {[%emt 0:01:12]} 10. Be3 {[%emt 0:00:54]} e5 {[%emt 0:00:30]} 11. Qd2 {[%emt 0:00:45]} Nf8 {[%emt 0:00:22]} 12. Ne2 {[%emt 0:01:39]} Ne6 {[%emt 0:00:25]} 13. Ng3 {[%emt 0:00:27]} Qd6 {[%emt 0:02:54]} 14. Rae1 {[%emt 0:01:53]} Ba6 {[%emt 0:01:32]} 15. b3 {[%emt 0:00:45]} O-O-O {[%emt 0:00:26]} 16. a4 {[%emt 0:00:41]} Rdf8 {[%emt 0:03:45]} 17. Qc1 {[%emt 0:02:53]} f5 {[%emt 0:00:34]} 18. exf5 gxf5 {[%emt 0:00:21]} 19. Nh4 {[%emt 0:00:57]} f4 {[%emt 0:00:38]} 20. Ngf5 {[%emt 0:00:39]} Qd7 {[%emt 0:00:29]} 21. Bd2 {[%emt 0:01:57]} Rhg8 {[%emt 0:01:19]} 22. Kh2 {[%emt 0:01:39]} Bf6 {[%emt 0:01:10]} 23. Qd1 {[%emt 0:02:46]} Kc7 {[%emt 0:01:23]} 24. Nf3 {[%emt 0:01:27]} Ng5 {[%emt 0:02:16]} 25. Nxh6 {[%emt 0:00:28]} Nxh3 {[%emt 0:00:55]} 26. Nxe5 {[%emt 0:01:13]} Bxe5 {[%emt 0:03:13]} 27. Rxe5 {[%emt 0:00:25]} Rg6 {[%emt 0:00:20]} 28. Qh5 {[%emt 0:01:11]} Qd6 {[%emt 0:00:55]} 29. Re7+ {[%emt 0:01:10]} Kb8 {[%emt 0:01:10]} 30. Nf5 {[%emt 0:01:09]} Rxf5 {[%emt 0:00:34]} 31. Qxf5 {[%emt 0:00:22]} Bc8 {[%emt 0:00:20]} 32. Qe5 {[%emt 0:00:25]} Ng5 {[%emt 0:00:49]} 33. Qxd6+ {[%emt 0:00:23]} Rxd6 {[%emt 0:00:22]} 34. Bxf4 {[%emt 0:00:22]} 1-0

[Event "EWIRCC 2019"]
[Site "Monte-Carlo"]
[Date "2019.12.01"]
[Round "7.11"]
[White "Bodnaruk, Anastasia"]
[Black "Janzelj, Lara"]
[Result "1-0"]
[ECO "C70"]
[WhiteElo "2412"]
[BlackElo "2158"]
[Annotator "NA"]
[PlyCount "69"]
[EventDate "2019.11.28"]
[EventType "swiss"]
[EventCountry "MNC"]
[SourceTitle "playchess.com"]
[Source "ChessBase"]
[SourceQuality "1"]
[TimeControl "5400+30"]

1. e4 {[%emt 1:15:11]} e5 {[%emt 1:15:11]} 2. Nf3 {[%emt 0:00:21]} Nc6 {[%emt 0:00:21]} 3. Bb5 {[%emt 0:00:21]} a6 {[%emt 0:00:23]} 4. Ba4 {[%emt 0:00:21]} b5 {[%emt 0:00:22]} 5. Bb3 {[%emt 0:00:21]} g6 {[%emt 0:00:21]} 6. d4 {[%emt 0:02:14]} exd4 {[%emt 0:00:22]} 7. c3 {[%emt 0:00:21]} Bg7 {[%emt 0:00:29]} 8. cxd4 {[%emt 0:00:23]} Nge7 {[%emt 0:00:41]} 9. Nc3 {[%emt 0:00:59]} d6 {[%emt 0:00:26]} 10. h3 {[%emt 0:00:35]} O-O {[%emt 0:00:22]} 11. O-O {[%emt 0:00:22]} Na5 {[%emt 0:00:20]} 12. Bc2 {[%emt 0:00:25]} c5 {[%emt 0:00:21]} 13. Bg5 {[%emt 0:02:13]} h6 {[%emt 0:00:40]} 14. Bh4 {[%emt 0:01:20]} g5 {[%emt 0:00:25]} 15. Bg3 {[%emt 0:00:26]} cxd4 {[%emt 0:01:08]} 16. Nxd4 {[%emt 0:00:33]} Nc4 {[%emt 0:00:23]} 17. Rb1 {[%emt 0:00:40]} Qb6 {[%emt 0:00:48]} 18. Nf5 {[%emt 0:01:40]} Nxf5 {[%emt 0:00:41]} 19. exf5 {[%emt 0:00:21]} Nxb2 {[%emt 0:01:46]} 20. Rxb2 {[%emt 0:02:46]} Bxc3 {[%emt 0:00:22]} 21. Rb3 {[%emt 0:02:17]} Be5 {[%emt 0:04:24]} 22. f6 {[%emt 0:01:52]} Re8 {[%emt 0:03:09]} 23. Qd3 {[%emt 0:01:18]} Kf8 {[%emt 0:01:02]} 24. Qh7 {[%emt 0:00:47]} Bxf6 {[%emt 0:00:21]} 25. Qxh6+ {[%emt 0:02:33]} Ke7 {[%emt 0:00:21]} 26. Rf3 {[%emt 0:00:31]} Bd4 {[%emt 0:01:50]} 27. Qxg5+ {[%emt 0:01:23]} f6 {[%emt 0:00:41]} 28. Re1+ {[%emt 0:00:56]} Be5 {[%emt 0:01:32]} 29. Qxf6+ {[%emt 0:00:36]} Kd7 {[%emt 0:00:24]} 30. Qf7+ {[%emt 0:00:33]} Re7 {[%emt 0:01:17]} 31. Bf5+ {[%emt 0:00:22]} Kd8 {[%emt 0:00:21]} 32. Bh4 {[%emt 0:00:31]} Raa7 {[%emt 0:00:22]} 33. Qf8+ {[%emt 0:00:28]} Kc7 {[%emt 0:00:22]} 34. Bxe7 {[%emt 0:00:28]} Bxf5 {[%emt 0:00:27]} 35. Bd8+ {[%emt 0:00:25]} 1-0

[Event "EWIRCC 2019"]
[Site "Monte-Carlo"]
[Date "2019.12.01"]
[Round "7.12"]
[White "Kashlinskaya, Alina"]
[Black "Zaksaite, Salomeja"]
[Result "1/2-1/2"]
[ECO "D80"]
[WhiteElo "2486"]
[BlackElo "2202"]
[Annotator "ChessBase"]
[PlyCount "109"]
[EventDate "2019.11.28"]
[EventType "swiss"]
[EventCountry "MNC"]
[SourceTitle "playchess.com"]
[Source "ChessBase"]
[SourceQuality "1"]
[TimeControl "5400+30"]

1. d4 {[%emt 1:15:11]} Nf6 {[%emt 1:17:06]} 2. c4 {[%emt 0:00:22]} g6 {[%emt 0:00:21]} 3. Nc3 {[%emt 0:00:22]} d5 {[%emt 0:00:21]} 4. Bg5 {[%emt 0:00:26]} Bg7 {[%emt 0:00:23]} 5. Bxf6 {[%emt 0:00:23]} Bxf6 {[%emt 0:00:22]} 6. cxd5 {[%emt 0:00:21]} c5 {[%emt 0:00:21]} 7. dxc5 {[%emt 0:00:30]} Qa5 {[%emt 0:02:20]} 8. Qd2 {[%emt 0:03:38]} Na6 {[%emt 0:00:48]} 9. a3 {[%emt 0:02:39]} Bxc3 {[%emt 0:03:07]} 10. Qxc3 {[%emt 0:00:25]} Qxc3+ {[%emt 0:00:22]} 11. bxc3 {[%emt 0:00:21]} Nxc5 {[%emt 0:00:20]} 12. Nf3 {[%emt 0:01:32]} O-O {[%emt 0:00:27]} 13. e3 {[%emt 0:00:33]} Rd8 {[%emt 0:00:25]} 14. c4 {[%emt 0:01:21]} Bf5 {[%emt 0:02:20]} 15. Nd4 {[%emt 0:00:42]} Nd3+ {[%emt 0:00:57]} 16. Ke2 {[%emt 0:04:00]} Ne5 {[%emt 0:01:33]} 17. e4 {[%emt 0:00:21]} Bxe4 {[%emt 0:01:31]} 18. Ke3 {[%emt 0:00:21]} Bf5 {[%emt 0:00:32]} 19. Nxf5 {[%emt 0:02:23]} gxf5 {[%emt 0:00:22]} 20. Kf4 {[%emt 0:01:43]} f6 {[%emt 0:00:33]} 21. Be2 {[%emt 0:01:07]} Rac8 {[%emt 0:01:39]} 22. Rac1 {[%emt 0:00:21]} Rc5 {[%emt 0:01:40]} 23. Kxf5 {[%emt 0:00:43]} b5 {[%emt 0:01:55]} 24. cxb5 {[%emt 0:00:48]} Rcxd5 {[%emt 0:00:21]} 25. Ke4 {[%emt 0:00:21]} Rd2 {[%emt 0:02:01]} 26. Ke3 {[%emt 0:00:21]} Ra2 {[%emt 0:00:31]} 27. Ra1 {[%emt 0:00:23]} Rb2 {[%emt 0:00:32]} 28. Rhb1 {[%emt 0:00:25]} Rc2 {[%emt 0:00:27]} 29. Rd1 {[%emt 0:01:13]} Rc3+ {[%emt 0:00:25]} 30. Ke4 {[%emt 0:00:21]} Rdc8 {[%emt 0:00:39]} 31. Rd2 {[%emt 0:00:46]} Kf7 {[%emt 0:00:25]} 32. a4 {[%emt 0:01:05]} Nc4 {[%emt 0:00:22]} 33. Bxc4+ {[%emt 0:00:27]} R8xc4+ {[%emt 0:00:24]} 34. Rd4 {[%emt 0:00:22]} Rc5 {[%emt 0:00:54]} 35. Rd3 {[%emt 0:00:45]} Rc2 {[%emt 0:00:28]} 36. Rad1 {[%emt 0:00:35]} Rxf2 {[%emt 0:00:24]} 37. R1d2 {[%emt 0:00:23]} Re5+ {[%emt 0:00:25]} 38. Kd4 {[%emt 0:00:21]} Rf4+ {[%emt 0:00:21]} 39. Kc3 {[%emt 0:00:21]} Rxa4 {[%emt 0:00:23]} 40. Rb2 {[%emt 0:00:36]} Rc5+ {[%emt 0:00:33]} 41. Kd2 {[%emt 0:00:21]} Rc7 {[%emt 0:00:29]} 42. Ke3 {[%emt 0:00:34]} Rac4 {[%emt 0:00:31]} 43. b6 {[%emt 0:00:31]} axb6 {[%emt 0:00:25]} 44. Rxb6 {[%emt 0:00:21]} Rc2 {[%emt 0:00:31]} 45. Kf3 {[%emt 0:00:24]} R7c5 {[%emt 0:00:36]} 46. h4 {[%emt 0:00:44]} Rf5+ {[%emt 0:00:28]} 47. Kg4 {[%emt 0:00:21]} Kg6 {[%emt 0:00:48]} 48. Kh3 {[%emt 0:00:41]} Rf1 {[%emt 0:00:38]} 49. Re6 {[%emt 0:00:44]} Kf7 {[%emt 0:00:25]} 50. Rde3 {[%emt 0:00:23]} Rc7 {[%emt 0:00:34]} 51. Kg3 {[%emt 0:00:26]} Rfc1 {[%emt 0:00:29]} 52. Kh2 {[%emt 0:00:24]} R1c3 {[%emt 0:00:25]} 53. Rxe7+ {[%emt 0:00:24]} Rxe7 {[%emt 0:00:24]} 54. Rxc3 {[%emt 0:00:21]} Kg6 {[%emt 0:00:23]} 55. Rc5 {[%emt 0:00:28]} 1/2-1/2

[Event "EWIRCC 2019"]
[Site "Monte-Carlo"]
[Date "2019.12.01"]
[Round "7.13"]
[White "Ovod, Evgenija"]
[Black "Berend, Elvira"]
[Result "0-1"]
[ECO "C54"]
[WhiteElo "2347"]
[BlackElo "2349"]
[Annotator "NA"]
[PlyCount "84"]
[EventDate "2019.11.28"]
[EventType "swiss"]
[EventCountry "MNC"]
[SourceTitle "playchess.com"]
[Source "ChessBase"]
[SourceQuality "1"]
[TimeControl "5400+30"]

1. e4 {[%emt 1:15:11]} e5 {[%emt 1:15:11]} 2. Nf3 {[%emt 0:00:21]} Nc6 {[%emt 0:00:22]} 3. Bc4 {[%emt 0:00:21]} Bc5 {[%emt 0:00:23]} 4. O-O {[%emt 0:00:23]} Nf6 {[%emt 0:00:23]} 5. d3 {[%emt 0:00:23]} d6 {[%emt 0:00:26]} 6. c3 {[%emt 0:00:30]} a6 {[%emt 0:00:55]} 7. Bb3 {[%emt 0:00:23]} Ba7 {[%emt 0:00:25]} 8. Nbd2 {[%emt 0:00:25]} O-O {[%emt 0:00:24]} 9. h3 {[%emt 0:00:22]} Be6 {[%emt 0:02:24]} 10. Re1 {[%emt 0:00:22]} Re8 {[%emt 0:00:36]} 11. Nf1 {[%emt 0:01:06]} Bxb3 {[%emt 0:00:38]} 12. Qxb3 {[%emt 0:00:33]} Qd7 {[%emt 0:02:17]} 13. Ng3 {[%emt 0:00:50]} h6 {[%emt 0:00:32]} 14. Be3 {[%emt 0:01:21]} Bxe3 {[%emt 0:00:35]} 15. Rxe3 {[%emt 0:00:24]} d5 {[%emt 0:01:01]} 16. Rae1 {[%emt 0:02:44]} d4 {[%emt 0:01:21]} 17. cxd4 {[%emt 0:00:23]} Nxd4 {[%emt 0:01:40]} 18. Nxd4 {[%emt 0:00:23]} exd4 {[%emt 0:00:30]} 19. Rf3 {[%emt 0:01:45]} c5 {[%emt 0:01:16]} 20. Rf5 {[%emt 0:01:42]} Rac8 {[%emt 0:01:37]} 21. Rc1 {[%emt 0:00:23]} Qe7 {[%emt 0:00:36]} 22. Qa3 {[%emt 0:03:50]} Nd7 {[%emt 0:00:45]} 23. Rd5 {[%emt 0:00:29]} g6 {[%emt 0:00:27]} 24. f4 {[%emt 0:01:07]} Rc6 {[%emt 0:00:41]} 25. Kh2 {[%emt 0:00:42]} b5 {[%emt 0:01:02]} 26. Rxd4 {[%emt 0:01:23]} Nb6 {[%emt 0:02:05]} 27. Qxa6 {[%emt 0:00:32]} Qc7 {[%emt 0:00:20]} 28. Qxb5 {[%emt 0:00:30]} Rc8 {[%emt 0:00:24]} 29. Rdc4 {[%emt 0:01:27]} Nxc4 {[%emt 0:00:21]} 30. Qxc4 {[%emt 0:00:21]} Qxf4 {[%emt 0:00:28]} 31. Rf1 {[%emt 0:00:24]} Qc7 {[%emt 0:00:20]} 32. b4 {[%emt 0:02:05]} cxb4 {[%emt 0:00:50]} 33. Qxb4 {[%emt 0:00:21]} h5 {[%emt 0:00:21]} 34. h4 {[%emt 0:00:26]} Qd8 {[%emt 0:00:21]} 35. e5 {[%emt 0:00:57]} Qxd3 {[%emt 0:00:26]} 36. Rf3 {[%emt 0:00:31]} Qd5 {[%emt 0:00:22]} 37. Qf4 {[%emt 0:00:34]} Rc4 {[%emt 0:00:23]} 38. Qg5 {[%emt 0:01:15]} Rg4 {[%emt 0:00:48]} 39. Qf6 {[%emt 0:00:35]} Re8 {[%emt 0:00:25]} 40. Kh3 {[%emt 0:01:55]} Qxa2 {[%emt 0:00:43]} 41. Rc3 {[%emt 0:00:37]} Qe6 {[%emt 0:00:38]} 42. Rc6 {[%emt 0:00:30]} Rxh4+ {[%emt 0:00:41]} 0-1

[Event "EWIRCC 2019"]
[Site "Monte-Carlo"]
[Date "2019.12.01"]
[Round "7.14"]
[White "Bensdorp-De Labaca, Marlies"]
[Black "Michna, Marta"]
[Result "1/2-1/2"]
[ECO "A56"]
[WhiteElo "2228"]
[BlackElo "2366"]
[Annotator "NA"]
[PlyCount "135"]
[EventDate "2019.11.28"]
[EventType "swiss"]
[EventCountry "MNC"]
[SourceTitle "playchess.com"]
[Source "ChessBase"]
[SourceQuality "1"]
[TimeControl "5400+30"]

1. d4 {[%emt 1:15:12]} Nf6 {[%emt 1:15:11]} 2. c4 {[%emt 0:00:22]} d6 {[%emt 0:00:21]} 3. Nc3 {[%emt 0:00:23]} Nbd7 {[%emt 0:00:22]} 4. e4 {[%emt 0:00:30]} e5 {[%emt 0:00:22]} 5. d5 {[%emt 0:00:59]} Be7 {[%emt 0:00:44]} 6. Bd3 {[%emt 0:00:35]} O-O {[%emt 0:00:23]} 7. Nge2 {[%emt 0:00:24]} c5 {[%emt 0:00:59]} 8. Ng3 {[%emt 0:01:38]} Ne8 {[%emt 0:01:50]} 9. O-O {[%emt 0:00:44]} g6 {[%emt 0:00:25]} 10. a3 {[%emt 0:00:32]} Ng7 {[%emt 0:01:18]} 11. b4 {[%emt 0:00:36]} b6 {[%emt 0:00:21]} 12. Rb1 {[%emt 0:00:22]} Bg5 {[%emt 0:01:29]} 13. f3 {[%emt 0:00:37]} h5 {[%emt 0:01:25]} 14. Qc2 {[%emt 0:00:40]} h4 {[%emt 0:00:35]} 15. Nh1 {[%emt 0:00:21]} Nh5 {[%emt 0:00:53]} 16. Ne2 {[%emt 0:02:18]} Nf4 {[%emt 0:01:28]} 17. Nf2 {[%emt 0:01:15]} Nxd3 {[%emt 0:02:07]} 18. Nxd3 {[%emt 0:00:40]} Bxc1 {[%emt 0:01:35]} 19. Qxc1 {[%emt 0:00:27]} h3 {[%emt 0:02:21]} 20. g3 {[%emt 0:00:29]} Kg7 {[%emt 0:01:02]} 21. f4 {[%emt 0:01:36]} f6 {[%emt 0:00:22]} 22. Qe3 {[%emt 0:01:56]} Ba6 {[%emt 0:01:45]} 23. b5 {[%emt 0:01:35]} Bc8 {[%emt 0:00:22]} 24. fxe5 {[%emt 0:01:35]} fxe5 {[%emt 0:00:35]} 25. Rxf8 {[%emt 0:00:23]} Qxf8 {[%emt 0:01:06]} 26. Rf1 {[%emt 0:00:22]} Qe7 {[%emt 0:00:23]} 27. Nf2 {[%emt 0:02:08]} Nf6 {[%emt 0:00:29]} 28. Nc3 {[%emt 0:01:53]} Bd7 {[%emt 0:00:42]} 29. a4 {[%emt 0:00:40]} Rf8 {[%emt 0:00:29]} 30. Ncd1 {[%emt 0:01:34]} Nh7 {[%emt 0:01:12]} 31. Qe2 {[%emt 0:01:43]} Ng5 {[%emt 0:00:43]} 32. Nd3 {[%emt 0:01:01]} Rxf1+ {[%emt 0:01:08]} 33. Kxf1 {[%emt 0:00:21]} Qf8+ {[%emt 0:00:30]} 34. Kg1 {[%emt 0:00:22]} Nf3+ {[%emt 0:00:26]} 35. Kh1 {[%emt 0:00:25]} Bg4 {[%emt 0:01:07]} 36. Qf2 {[%emt 0:00:21]} Nd2 {[%emt 0:00:27]} 37. Qxf8+ {[%emt 0:00:30]} Kxf8 {[%emt 0:00:21]} 38. Ne3 {[%emt 0:00:24]} Bf3+ {[%emt 0:00:22]} 39. Kg1 {[%emt 0:00:21]} Nxe4 {[%emt 0:00:41]} 40. Nf2 {[%emt 0:00:36]} Ng5 {[%emt 0:00:39]} 41. Kf1 {[%emt 0:00:32]} Ke7 {[%emt 0:00:24]} 42. Ke1 {[%emt 0:00:24]} Kf6 {[%emt 0:00:29]} 43. Kd2 {[%emt 0:00:32]} e4 {[%emt 0:00:34]} 44. Neg4+ {[%emt 0:00:49]} Bxg4 {[%emt 0:00:26]} 45. Nxg4+ {[%emt 0:00:22]} Kf5 {[%emt 0:00:22]} 46. Nh6+ {[%emt 0:00:22]} Ke5 {[%emt 0:00:25]} 47. Ke3 {[%emt 0:00:24]} Kf6 {[%emt 0:00:48]} 48. Ng4+ {[%emt 0:00:23]} Ke7 {[%emt 0:00:23]} 49. Nf2 {[%emt 0:00:22]} Nf3 {[%emt 0:00:21]} 50. Nxh3 {[%emt 0:00:23]} Nxh2 {[%emt 0:00:28]} 51. Kxe4 {[%emt 0:00:23]} Nf1 {[%emt 0:00:24]} 52. g4 {[%emt 0:00:28]} Nd2+ {[%emt 0:00:24]} 53. Kd3 {[%emt 0:00:21]} Nf3 {[%emt 0:00:21]} 54. g5 {[%emt 0:00:31]} Kf7 {[%emt 0:00:27]} 55. Kc3 {[%emt 0:00:25]} Kg7 {[%emt 0:00:40]} 56. Kd3 {[%emt 0:00:24]} Kf7 {[%emt 0:00:29]} 57. Kc3 {[%emt 0:00:21]} Ke7 {[%emt 0:00:35]} 58. Kd3 {[%emt 0:00:21]} Nd4 {[%emt 0:00:26]} 59. Kc3 {[%emt 0:00:28]} Ne2+ {[%emt 0:00:33]} 60. Kd2 {[%emt 0:00:23]} Nd4 {[%emt 0:00:49]} 61. Kc3 {[%emt 0:00:21]} Nf3 {[%emt 0:00:24]} 62. Kd3 {[%emt 0:00:23]} Kd7 {[%emt 0:00:20]} 63. Kc3 {[%emt 0:00:23]} Kc7 {[%emt 0:00:22]} 64. Nf4 {[%emt 0:00:28]} Nxg5 {[%emt 0:00:21]} 65. Nxg6 {[%emt 0:00:21]} Ne4+ {[%emt 0:00:29]} 66. Kd3 {[%emt 0:00:27]} Nf2+ {[%emt 0:00:21]} 67. Kd2 {[%emt 0:00:29]} Ne4+ {[%emt 0:00:27]} 68. Kd3 {[%emt 0:03:40]} 1/2-1/2

[Event "EWIRCC 2019"]
[Site "Monte-Carlo"]
[Date "2019.12.01"]
[Round "7.15"]
[White "Johansson, Viktoria"]
[Black "Paehtz, Elisabeth"]
[Result "0-1"]
[ECO "D15"]
[WhiteElo "2120"]
[BlackElo "2484"]
[Annotator "ChessBase"]
[PlyCount "118"]
[EventDate "2019.11.28"]
[EventType "swiss"]
[EventCountry "MNC"]
[SourceTitle "playchess.com"]
[Source "ChessBase"]
[SourceQuality "1"]
[TimeControl "5400+30"]

1. d4 {[%emt 1:15:12]} d5 {[%emt 1:15:11]} 2. c4 {[%emt 0:00:23]} c6 {[%emt 0:00:21]} 3. Nf3 {[%emt 0:00:23]} Nf6 {[%emt 0:00:21]} 4. Nc3 {[%emt 0:00:25]} a6 {[%emt 0:00:21]} 5. Bf4 {[%emt 0:00:53]} dxc4 {[%emt 0:00:23]} 6. a4 {[%emt 0:01:23]} Nd5 {[%emt 0:00:23]} 7. Bg3 {[%emt 0:02:03]} Qa5 {[%emt 0:01:20]} 8. Qc1 {[%emt 0:01:00]} Nf6 {[%emt 0:02:09]} 9. e3 {[%emt 0:01:11]} Qb4 {[%emt 0:03:51]} 10. a5 {[%emt 0:00:50]} e6 {[%emt 0:00:24]} 11. Ra4 {[%emt 0:00:36]} Qe7 {[%emt 0:00:21]} 12. Bxc4 {[%emt 0:00:59]} Nbd7 {[%emt 0:00:22]} 13. Bd3 {[%emt 0:01:45]} c5 {[%emt 0:00:42]} 14. O-O {[%emt 0:00:38]} Qd8 {[%emt 0:00:31]} 15. Ra1 {[%emt 0:01:27]} Be7 {[%emt 0:00:25]} 16. Rd1 {[%emt 0:00:45]} O-O {[%emt 0:00:30]} 17. dxc5 {[%emt 0:00:52]} Bxc5 {[%emt 0:00:56]} 18. Ne4 {[%emt 0:00:56]} Nxe4 {[%emt 0:00:31]} 19. Bxe4 {[%emt 0:00:22]} Qe7 {[%emt 0:00:28]} 20. Bh4 {[%emt 0:01:01]} f6 {[%emt 0:00:40]} 21. Nd4 {[%emt 0:01:01]} Ne5 {[%emt 0:02:25]} 22. Qc2 {[%emt 0:00:59]} h6 {[%emt 0:00:50]} 23. Bg3 {[%emt 0:01:43]} Nf7 {[%emt 0:00:21]} 24. Qe2 {[%emt 0:02:05]} Nd6 {[%emt 0:01:39]} 25. Bxd6 {[%emt 0:01:02]} Bxd6 {[%emt 0:00:22]} 26. Qh5 {[%emt 0:00:32]} f5 {[%emt 0:00:42]} 27. Bd3 {[%emt 0:00:48]} Be5 {[%emt 0:02:07]} 28. Bc4 {[%emt 0:01:04]} Kh8 {[%emt 0:00:27]} 29. Rac1 {[%emt 0:00:28]} Bf6 {[%emt 0:00:34]} 30. b3 {[%emt 0:00:29]} Bd7 {[%emt 0:00:37]} 31. Rc2 {[%emt 0:00:41]} Rae8 {[%emt 0:01:39]} 32. Rcd2 {[%emt 0:00:22]} Bc8 {[%emt 0:00:26]} 33. Ne2 {[%emt 0:00:48]} Be5 {[%emt 0:01:13]} 34. Nf4 {[%emt 0:00:34]} Bxf4 {[%emt 0:00:22]} 35. exf4 {[%emt 0:00:21]} Qc7 {[%emt 0:00:22]} 36. Ra1 {[%emt 0:01:07]} Qxf4 {[%emt 0:00:25]} 37. Rc2 {[%emt 0:00:29]} Qe5 {[%emt 0:00:30]} 38. Rac1 {[%emt 0:00:23]} Qxa5 {[%emt 0:00:26]} 39. Qg6 {[%emt 0:00:31]} Bd7 {[%emt 0:01:03]} 40. Rc3 {[%emt 0:00:21]} Rf6 {[%emt 0:00:30]} 41. Qg3 {[%emt 0:00:27]} Bc6 {[%emt 0:00:38]} 42. Qd6 {[%emt 0:00:30]} e5 {[%emt 0:00:30]} 43. Qd2 {[%emt 0:00:28]} f4 {[%emt 0:00:30]} 44. Bd3 {[%emt 0:00:32]} e4 {[%emt 0:00:28]} 45. Bb1 {[%emt 0:00:21]} Qg5 {[%emt 0:00:46]} 46. Rc5 {[%emt 0:00:22]} Rf5 {[%emt 0:00:24]} 47. Rxf5 {[%emt 0:00:37]} Qxf5 {[%emt 0:00:21]} 48. b4 {[%emt 0:00:48]} f3 {[%emt 0:00:28]} 49. gxf3 {[%emt 0:00:31]} Qxf3 {[%emt 0:00:30]} 50. Rc3 {[%emt 0:00:26]} Qf6 {[%emt 0:00:24]} 51. Rg3 {[%emt 0:00:22]} Qa1 {[%emt 0:00:28]} 52. Qc2 {[%emt 0:00:31]} Rd8 {[%emt 0:00:50]} 53. h4 {[%emt 0:00:22]} Qf6 {[%emt 0:00:41]} 54. Qe2 {[%emt 0:00:38]} Qxh4 {[%emt 0:00:30]} 55. Rg4 {[%emt 0:00:22]} Qh5 {[%emt 0:00:50]} 56. Bxe4 {[%emt 0:00:27]} Bxe4 {[%emt 0:00:50]} 57. Qxe4 {[%emt 0:00:21]} Rd1+ {[%emt 0:00:21]} 58. Kg2 {[%emt 0:00:25]} Qh1+ {[%emt 0:00:22]} 59. Kg3 {[%emt 0:00:21]} Rg1+ {[%emt 0:00:22]} 0-1

[Event "EWIRCC 2019"]
[Site "Monte-Carlo"]
[Date "2019.12.01"]
[Round "7.16"]
[White "Antova, Gabriela"]
[Black "Guichard, Pauline"]
[Result "0-1"]
[ECO "D39"]
[WhiteElo "2314"]
[BlackElo "2407"]
[Annotator "NA"]
[PlyCount "80"]
[EventDate "2019.11.28"]
[EventType "swiss"]
[EventCountry "MNC"]
[SourceTitle "playchess.com"]
[Source "ChessBase"]
[SourceQuality "1"]
[TimeControl "5400+30"]

1. d4 {[%emt 1:15:12]} Nf6 {[%emt 1:15:11]} 2. c4 {[%emt 0:00:23]} e6 {[%emt 0:00:22]} 3. Nf3 {[%emt 0:00:22]} d5 {[%emt 0:00:22]} 4. Nc3 {[%emt 0:00:24]} dxc4 {[%emt 0:00:22]} 5. e4 {[%emt 0:00:31]} Bb4 {[%emt 0:00:23]} 6. Bg5 {[%emt 0:00:29]} c5 {[%emt 0:01:17]} 7. e5 {[%emt 0:01:30]} cxd4 {[%emt 0:03:30]} 8. Nxd4 {[%emt 0:00:28]} Bxc3+ {[%emt 0:00:46]} 9. bxc3 {[%emt 0:00:23]} Qa5 {[%emt 0:00:22]} 10. exf6 {[%emt 0:00:39]} Qxg5 {[%emt 0:00:24]} 11. fxg7 {[%emt 0:00:24]} Qxg7 {[%emt 0:00:23]} 12. Qd2 {[%emt 0:01:33]} O-O {[%emt 0:01:24]} 13. Bxc4 {[%emt 0:00:30]} e5 {[%emt 0:01:27]} 14. Ne2 {[%emt 0:02:21]} Nc6 {[%emt 0:02:53]} 15. O-O {[%emt 0:01:10]} Bf5 {[%emt 0:00:39]} 16. Ng3 {[%emt 0:03:27]} Bg6 {[%emt 0:00:22]} 17. h4 {[%emt 0:01:53]} h6 {[%emt 0:02:42]} 18. Qe3 {[%emt 0:00:53]} Kh8 {[%emt 0:00:59]} 19. h5 {[%emt 0:01:07]} Bh7 {[%emt 0:00:24]} 20. Rae1 {[%emt 0:01:26]} Rae8 {[%emt 0:01:13]} 21. Bd5 {[%emt 0:00:51]} f5 {[%emt 0:01:15]} 22. f4 {[%emt 0:00:43]} e4 {[%emt 0:00:38]} 23. Rd1 {[%emt 0:01:11]} Bg8 {[%emt 0:01:34]} 24. Rf2 {[%emt 0:00:33]} Qg4 {[%emt 0:01:28]} 25. Rdd2 {[%emt 0:02:15]} Bxd5 {[%emt 0:00:43]} 26. Rxd5 {[%emt 0:00:21]} Rd8 {[%emt 0:00:21]} 27. Rfd2 {[%emt 0:01:14]} Rxd5 {[%emt 0:01:00]} 28. Rxd5 {[%emt 0:00:21]} Rg8 {[%emt 0:00:21]} 29. Kf2 {[%emt 0:00:20]} Ne7 {[%emt 0:00:33]} 30. Rd6 {[%emt 0:00:21]} Kh7 {[%emt 0:00:47]} 31. c4 {[%emt 0:00:25]} Rg7 {[%emt 0:00:23]} 32. Rd7 {[%emt 0:00:41]} b6 {[%emt 0:01:09]} 33. Rxa7 {[%emt 0:00:41]} Qh4 {[%emt 0:00:21]} 34. Ra3 {[%emt 0:01:31]} Ng8 {[%emt 0:00:33]} 35. Kg1 {[%emt 0:00:33]} Qg4 {[%emt 0:00:32]} 36. Rb3 {[%emt 0:00:34]} Nf6 {[%emt 0:00:22]} 37. Rxb6 {[%emt 0:00:27]} Nxh5 {[%emt 0:00:23]} 38. c5 {[%emt 0:00:40]} Nxg3 {[%emt 0:00:26]} 39. Qf2 {[%emt 0:00:27]} Qd1+ {[%emt 0:00:25]} 40. Kh2 {[%emt 0:00:21]} Qh1# {[%emt 0:00:21]} 0-1